bitfinex-derivatives/quotes_SOLF0:USTF0_20250312
["timestamp","ask_amount","ask_price","bid_price","bid_amount"]
[1741815675817,0.05033804,125.96,125.93,42.6983006]
[1741815676016,0.05033804,125.96,125.95,11.78430027]
[1741815677217,0.05033804,125.96,125.95,52.72793037]
[1741815678516,0.05033804,125.96,125.94,109.55207514]
[1741815678711,42.62430027,125.95,125.93,42.19234405]
[1741815678919,42.62430027,125.95,125.92,56.67653692]
[1741815679222,19.72660027,125.93,125.92,56.67653692]
[1741815679422,11.78430027,125.93,125.9,268.03308426]
[1741815679617,11.78430027,125.91,125.89,4.25e-06]
[1741815679825,11.78430027,125.9,125.89,4.25e-06]
[1741815680027,19.72850027,125.9,125.89,0.05819469]
[1741815680230,26.36583867,125.9,125.83,251.45948426]
[1741815680431,30.84,125.89,125.83,251.45948426]
[1741815681034,7.9472,125.86,125.83,251.45948426]
[1741815681228,38.84085508,125.86,125.83,251.51568749]
[1741815681826,7.9475,125.85,125.83,251.51568749]
[1741815683035,7.9475,125.85,125.83,0.05620323]
[1741815683531,7.948,125.84,125.83,0.05620323]
[1741815683925,26.37383867,125.84,125.83,3.23e-06]
[1741815684125,34.31383867,125.84,125.83,3.23e-06]
[1741815684436,38.788,125.84,125.83,3.23e-06]
[1741815684636,7.948,125.84,125.83,3.23e-06]
[1741815686635,7.9477,125.85,125.83,3.23e-06]
[1741815686832,0.05365508,125.86,125.83,3.23e-06]
[1741815687834,7.948,125.84,125.83,3.23e-06]
[1741815692943,38.788,125.84,125.83,3.23e-06]
[1741815694049,57.21383867,125.84,125.83,3.23e-06]
[1741815694741,65.15383867,125.84,125.83,3.23e-06]
[1741815697050,57.21383867,125.84,125.83,3.23e-06]
[1741815697249,65.15383867,125.84,125.83,3.23e-06]
[1741815698345,7.952,125.78,125.74,20.6407]
[1741815698545,7.952,125.78,125.74,51.4807]
[1741815699549,0.05031306,125.77,125.75,0.05734812]
[1741815704458,0.05031306,125.77,125.75,11.85809364]
[1741815704859,8.00271306,125.77,125.75,11.85809364]
[1741815706268,8.00271306,125.77,125.75,0.05734812]
[1741815706559,8.00271306,125.77,125.75,11.85809364]
[1741815707161,0.05031306,125.77,125.75,11.85809364]
[1741815708357,8.00271306,125.77,125.75,11.85809364]
[1741815709657,8.00271306,125.77,125.75,0.05734812]
[1741815709855,8.00271306,125.77,125.75,11.85809364]
[1741815712461,8.00271306,125.77,125.75,0.05734812]
[1741815712761,8.00271306,125.77,125.75,8.01094812]
[1741815713264,0.05031306,125.77,125.75,8.01094812]
[1741815713658,0.05031306,125.77,125.76,11.80074552]
[1741815714756,0.05031306,125.77,125.75,8.01094812]
[1741815715155,8.00281306,125.77,125.75,8.01094812]
[1741815718662,0.05031306,125.77,125.75,8.01094812]
[1741815725166,8.00281306,125.77,125.75,8.01094812]
[1741815728462,0.05031306,125.77,125.75,0.05734812]
[1741815729171,8.00301306,125.77,125.75,8.01094812]
[1741815730469,8.00301306,125.77,125.75,38.85094812]
[1741815731169,0.05031306,125.77,125.75,38.85094812]
[1741815732973,7.9521,125.78,125.76,7.953]
[1741815734073,8.00576616,125.78,125.76,7.953]
[1741815736675,0.05366616,125.78,125.76,7.953]
[1741815736871,11.08917399,125.83,125.8,7.9502]
[1741815737178,113.68791575,125.84,125.82,11.80074552]
[1741815737380,93.88991575,125.84,125.83,38.7686]
[1741815737576,93.88991575,125.84,125.77,459.4]
[1741815737873,101.83831575,125.84,125.79,11.80074552]
[1741815738077,0.05086033,125.82,125.8,7.95]
[1741815738577,0.05086033,125.82,125.79,0.05873563]
[1741815738778,11.85160585,125.82,125.79,0.05873563]
[1741815739370,42.67160585,125.82,125.79,0.05873563]
[1741815740372,7.9505,125.8,125.79,0.05873563]
[1741815749781,7.9502,125.81,125.79,0.05873563]
[1741815753488,7.9499,125.81,125.79,0.05873563]
[1741815754092,0.05086033,125.82,125.79,0.05873563]
[1741815755394,7.9504,125.81,125.79,0.05873563]
[1741815759290,7.9504,125.81,125.79,8.00973563]
[1741815761599,7.9504,125.81,125.79,0.05873563]
[1741815762994,0.05086033,125.82,125.79,0.05873563]
[1741815763192,11.85160585,125.82,125.79,0.05873563]
[1741815767098,7.9505,125.8,125.79,0.05873563]
[1741815784718,19.75124552,125.8,125.79,0.05873563]
[1741815800040,7.9505,125.8,125.79,0.05873563]
[1741815803138,19.75124552,125.8,125.79,0.05873563]
[1741815804738,7.9505,125.8,125.79,0.05873563]
[1741815814944,0.05086033,125.82,125.79,0.05873563]
[1741815815144,0.05086033,125.82,125.79,11.85948115]
[1741815815839,0.05086033,125.82,125.8,7.9504]
[1741815816538,0.05086033,125.82,125.81,7.9499]
[1741815816732,0.05086033,125.82,125.81,38.7099]
[1741815817141,11.80074552,125.85,125.82,7.9487]
[1741815817450,43.84599971,125.87,125.83,11.80074552]
[1741815817634,7.9458,125.88,125.83,11.80074552]
[1741815817941,7.9458,125.88,125.84,7.9476]
[1741815818343,0.05871827,125.87,125.85,0.05395202]
[1741815820044,11.85946379,125.87,125.85,0.05395202]
[1741815821044,7.9467,125.86,125.85,0.05395202]
[1741815826142,0.05871827,125.87,125.85,30.79395202]
[1741815826343,0.05871827,125.87,125.85,42.59469754]
[1741815826540,0.05871827,125.87,125.85,50.54169754]
[1741815826846,0.05871827,125.87,125.85,42.59469754]
[1741815827149,0.05871827,125.87,125.85,50.54169754]
[1741815827847,7.9449,125.89,125.86,7.9467]
[1741815828751,7.9449,125.89,125.85,30.79395202]
[1741815829355,7.9449,125.89,125.86,7.9464]
[1741815829749,11.80074552,125.9,125.86,7.9464]
[1741815829951,19.74524552,125.9,125.86,7.9464]
[1741815830146,11.80074552,125.9,125.86,7.9464]
[1741815830547,19.74524552,125.9,125.86,7.9464]
[1741815830749,11.80074552,125.94,125.9,7.9437]
[1741815830948,19.74254552,125.94,125.9,7.9437]
[1741815831144,11.80074552,125.94,125.91,0.05750153]
[1741815831349,11.80074552,125.94,125.91,8.00060153]
[1741815831649,11.80074552,125.94,125.91,0.05750153]
[1741815831854,11.80074552,125.94,125.92,7.9427]
[1741815832055,19.74244552,125.94,125.91,30.79750153]
[1741815832452,11.80074552,125.94,125.91,38.74070153]
[1741815832853,11.80074552,125.94,125.91,30.79750153]
[1741815833153,11.80074552,125.94,125.91,38.74090153]
[1741815833354,7.942,125.94,125.91,38.74090153]
[1741815833551,11.80074552,125.95,125.91,30.79750153]
[1741815833750,39.1181,125.98,125.91,30.79750153]
[1741815833751,11.80074552,125.93,125.91,30.79750153]
[1741815833950,38.6629,125.92,125.91,1.53e-06]
[1741815835156,38.6629,125.92,125.84,11.80074552]
[1741815835157,7.946,125.88,125.84,30.72]
[1741815835658,7.946,125.88,125.84,38.6677]
[1741815836457,0.05580174,125.87,125.85,0.05652855]
[1741815837658,8.00200174,125.87,125.85,0.05652855]
[1741815838258,0.05580174,125.87,125.85,0.05652855]
[1741815838862,8.00220174,125.87,125.85,0.05652855]
[1741815839161,0.05580174,125.87,125.85,0.05652855]
[1741815841060,7.9467,125.86,125.85,0.05652855]
[1741815841362,19.74744552,125.86,125.85,0.05652855]
[1741815842866,11.80074552,125.86,125.8,30.72]
[1741815843063,11.80074552,125.84,125.77,11.80074552]
[1741815843264,11.80074552,125.82,125.75,11.80074552]
[1741815843460,30.72,125.81,125.74,11.80074552]
[1741815843661,30.72,125.81,125.75,11.80074552]
[1741815843964,38.6702,125.81,125.75,11.80074552]
[1741815844167,0.05166539,125.79,125.77,0.05706241]
[1741815845170,0.05166539,125.79,125.77,8.00906241]
[1741815848772,0.05166539,125.79,125.78,7.9518]
[1741815849671,0.05166539,125.79,125.78,19.75254552]
[1741815849871,19.74894552,125.84,125.78,42.52074552]
[1741815850172,7.9476,125.85,125.81,7.9493]
[1741815850371,11.80074552,125.86,125.81,30.72]
[1741815850773,19.74784552,125.86,125.82,7.9488]
[1741815850973,11.80074552,125.88,125.81,30.72]
[1741815851173,0.0567963,125.85,125.83,0.05007843]
[1741815852479,8.0041963,125.85,125.83,0.05007843]
[1741815853475,0.0567963,125.85,125.83,0.05007843]
[1741815854975,8.0042963,125.85,125.83,0.05007843]
[1741815857183,7.948,125.84,125.83,0.05007843]
[1741815861478,0.0567963,125.85,125.84,7.948]
[1741815861677,8.5998,125.91,125.84,30.72]
[1741815861884,11.80074552,125.92,125.86,11.80074552]
[1741815862182,7.9426,125.93,125.88,7.9451]
[1741815862688,7.9426,125.93,125.89,0.05024006]
[1741815863588,7.9426,125.93,125.89,7.99494006]
[1741815863983,7.9436,125.91,125.89,0.05024006]
[1741815864488,11.80074552,125.92,125.89,0.05024006]
[1741815864688,19.74494552,125.9,125.89,0.05024006]
[1741815864882,11.80074552,125.9,125.83,42.52074552]
[1741815865083,11.80074552,125.9,125.84,7.9478]
[1741815865284,7.9451,125.89,125.83,42.52074552]
[1741815865983,7.9451,125.89,125.85,7.947]
[1741815866182,0.05081756,125.87,125.85,7.99897479]
[1741815866991,0.05081756,125.87,125.86,7.9467]
[1741815867295,0.05081756,125.87,125.85,0.05197479]
[1741815867789,0.05081756,125.87,125.86,7.9467]
[1741815868585,0.05081756,125.87,125.85,7.99887479]
[1741815868981,0.05081756,125.87,125.85,0.05197479]
[1741815869689,7.99711756,125.87,125.85,0.05197479]
[1741815869886,0.05081756,125.87,125.85,0.05197479]
[1741815872094,7.99711756,125.87,125.85,0.05197479]
[1741815872594,0.05081756,125.87,125.85,0.05197479]
[1741815872794,0.05081756,125.87,125.85,7.99917479]
[1741815873196,0.05081756,125.87,125.86,7.9467]
[1741815873496,0.05081756,125.87,125.85,0.05197479]
[1741815874094,0.05081756,125.87,125.85,7.99897479]
[1741815874799,0.05081756,125.87,125.85,0.05197479]
[1741815875097,7.99711756,125.87,125.85,0.05197479]
[1741815881407,0.05081756,125.87,125.85,0.05197479]
[1741815881605,0.05081756,125.87,125.85,7.99887479]
[1741815882408,7.99721756,125.87,125.85,0.05197479]
[1741815882602,0.05081756,125.87,125.85,0.05197479]
[1741815883202,7.99691756,125.87,125.85,0.05197479]
[1741815883400,0.05081756,125.87,125.85,0.05197479]
[1741815884607,7.99701756,125.87,125.85,0.05197479]
[1741815884803,7.99701756,125.87,125.85,7.99917479]
[1741815885006,7.99701756,125.87,125.85,0.05197479]
[1741815885308,0.05081756,125.87,125.85,7.99927479]
[1741815886215,7.99691756,125.87,125.85,0.05197479]
[1741815886403,0.05081756,125.87,125.85,0.05197479]
[1741815887105,0.05081756,125.87,125.85,7.99907479]
[1741815888206,7.99701756,125.87,125.85,7.99907479]
[1741815888709,7.99701756,125.87,125.85,0.05197479]
[1741815888912,0.05081756,125.87,125.85,0.05197479]
[1741815889408,7.99721756,125.87,125.85,0.05197479]
[1741815890410,0.05081756,125.87,125.85,0.05197479]
[1741815891113,42.53504416,125.87,125.85,0.05197479]
[1741815891414,42.53504416,125.87,125.77,55.4067266]
[1741815891605,11.7842266,125.83,125.77,55.4067266]
[1741815892414,0.05322782,125.81,125.79,0.05700216]
[1741815892806,0.05322782,125.81,125.79,8.00780216]
[1741815893609,0.05322782,125.81,125.8,7.9505]
[1741815896414,109.48807783,125.86,125.83,7.948]
[1741815896713,101.54107783,125.86,125.82,30.7]
[1741815897011,101.54107783,125.86,125.83,30.7]
[1741815897415,101.54107783,125.86,125.84,7.9476]
[1741815897605,101.59658957,125.86,125.84,7.9476]
[1741815900509,101.59658957,125.86,125.83,30.75779335]
[1741815900715,7.9475,125.85,125.83,38.70609335]
[1741815900915,101.59658957,125.86,125.83,30.75779335]
[1741815901112,7.948,125.84,125.83,30.75779335]
[1741815901326,7.948,125.84,125.83,0.05779335]
[1741815902409,101.59658957,125.86,125.83,0.05779335]
[1741815902614,7.9478,125.85,125.83,0.05779335]
[1741815904020,101.59658957,125.86,125.83,0.05779335]
[1741815904622,7.9477,125.85,125.83,0.05779335]
[1741815904815,0.05551174,125.86,125.85,7.9473]
[1741815905015,11.08306319,125.94,125.85,7.9473]
[1741815905016,19.7275266,125.92,125.85,11.7842266]
[1741815905217,11.7842266,125.92,125.85,11.7842266]
[1741815905421,11.7842266,125.92,125.9,7.9441]
[1741815905620,22.86728979,125.94,125.89,30.68]
[1741815905915,22.86728979,125.94,125.92,7.9429]
[1741815906916,22.86728979,125.94,125.9,0.05796539]
[1741815907115,11.08306319,125.94,125.9,0.05796539]
[1741815907322,11.08306319,125.94,125.93,7.9423]
[1741815907516,11.08306319,125.94,125.93,38.6223]
[1741815907714,11.08306319,125.94,125.93,50.4065266]
[1741815908321,19.7236266,125.98,125.93,50.4065266]
[1741815908521,11.7842266,125.98,125.93,50.4065266]
[1741815908823,11.7842266,125.98,125.94,0.05255073]
[1741815909126,11.7842266,125.98,125.94,7.99415073]
[1741815910225,7.9388,125.99,125.94,7.99415073]
[1741815911524,7.9393,125.98,125.94,7.99415073]
[1741815912323,18.38306433,126.0,125.94,7.99415073]
[1741815912324,7.9389,125.99,125.94,7.99415073]
[1741815912721,7.9389,125.99,125.95,7.941]
[1741815914031,7.9393,125.98,125.94,7.99385073]
[1741815914629,7.94,125.97,125.94,7.99385073]
[1741815915327,7.9408,125.96,125.94,0.05255073]
[1741815915523,7.9408,125.96,125.92,30.66]
[1741815915524,18.38306433,125.96,125.92,30.66]
[1741815915723,18.38306433,125.98,125.94,0.0586469]
[1741815915923,18.38306433,125.98,125.93,7.9418]
[1741815916133,18.38306433,125.98,125.95,0.05182875]
[1741815916635,7.9401,125.97,125.95,0.05182875]
[1741815918836,18.38306433,126.0,125.95,0.05182875]
[1741815920742,7.9398,125.97,125.95,0.05182875]
[1741815922432,18.38306433,126.0,125.95,0.05182875]
[1741815922837,18.38306433,126.0,125.95,30.71182875]
[1741815923339,7.9389,125.99,125.96,7.9401]
[1741815925738,7.9389,125.99,125.95,30.71182875]
[1741815926045,7.9389,125.99,125.95,38.65252875]
[1741815926342,7.9396,125.98,125.95,38.65252875]
[1741815926538,61.69936433,126.02,125.95,30.71182875]
[1741815926744,7.9394,125.98,125.95,30.71182875]
[1741815927143,18.38306433,126.0,125.95,0.05182875]
[1741815927345,18.38306433,125.98,125.95,0.05182875]
[1741815927647,18.38306433,125.96,125.84,256.84306433]
[1741815927847,18.38306433,125.94,125.85,30.66]
[1741815928043,18.38306433,125.92,125.83,12.7586]
[1741815928241,35.051,125.91,125.83,51.3668]
[1741815928448,18.38306433,125.9,125.8,18.38306433]
[1741815928645,0.05474198,125.88,125.86,0.06100333]
[1741815929051,7.9461,125.87,125.86,0.06100333]
[1741815929343,18.43780631,125.88,125.79,12.4754]
[1741815929537,18.38306433,125.88,125.79,43.1354]
[1741815929740,7.9463,125.87,125.79,43.1354]
[1741815929939,3.9722,125.89,125.8,18.38306433]
[1741815930140,3.9722,125.89,125.82,18.38306433]
[1741815930338,3.9722,125.89,125.85,7.9472]
[1741815930542,0.05694608,125.87,125.85,7.9472]
[1741815931341,0.05694608,125.87,125.84,0.05831352]
[1741815931546,18.38306433,125.94,125.84,18.44137785]
[1741815931744,18.38306433,125.94,125.84,18.38306433]
[1741815931949,7.9417,125.94,125.9,7.9437]
[1741815932152,3.9758,125.96,125.9,38.6037]
[1741815932655,3.9758,125.96,125.9,30.66]
[1741815932850,0.05919421,125.94,125.92,0.05296593]
[1741815933056,22.59136433,125.99,125.92,30.71296593]
[1741815933250,0.05188288,125.94,125.93,7.9417]
[1741815933451,0.0601039,125.95,125.92,30.66]
[1741815933653,0.0601039,125.95,125.92,30.7195599]
[1741815933857,0.0601039,125.95,125.93,7.9423]
[1741815934256,0.0601039,125.95,125.92,30.7195599]
[1741815934758,0.0601039,125.95,125.94,7.9417]
[1741815935253,4.1456,126.0,125.96,7.9404]
[1741815935461,4.1456,126.0,125.96,30.66]
[1741815935649,18.38306433,126.01,125.96,30.66]
[1741815936558,7.939,125.99,125.97,0.05694268]
[1741815936757,18.38306433,126.01,125.97,0.05694268]
[1741815936953,18.38306433,125.99,125.97,0.05694268]
[1741815937250,7.9391,125.98,125.97,0.05694268]
[1741815944862,7.9391,125.98,125.97,4.268e-05]
[1741815945067,7.9436,125.91,125.89,30.64]
[1741815945261,7.9436,125.91,125.88,8.6396]
[1741815945461,7.9436,125.91,125.89,30.64]
[1741815946166,8.00054268,125.91,125.89,30.6967365]
[1741815946660,7.9442,125.9,125.89,30.6967365]
[1741815947870,7.9442,125.9,125.89,0.0567365]
[1741815954373,0.05694268,125.91,125.89,0.0567365]
[1741815956471,0.05694268,125.91,125.89,8.0014365]
[1741815956670,0.05694268,125.91,125.89,0.0567365]
[1741815956977,0.05694268,125.91,125.89,8.0012365]
[1741815957175,0.05694268,125.91,125.89,0.0567365]
[1741815957777,8.00054268,125.91,125.89,0.0567365]
[1741815958473,0.05694268,125.91,125.89,0.0567365]
[1741815958675,0.05694268,125.91,125.89,8.0014365]
[1741815959284,0.05694268,125.91,125.89,0.0567365]
[1741815959974,0.05694268,125.91,125.89,8.0014365]
[1741815960977,0.05694268,125.91,125.89,0.0567365]
[1741815961178,0.05694268,125.91,125.89,8.0011365]
[1741815962280,0.05694268,125.91,125.89,0.0567365]
[1741815962980,0.05694268,125.91,125.89,8.0015365]
[1741815964084,0.05694268,125.91,125.9,7.9442]
[1741815964379,0.05694268,125.91,125.89,0.0567365]
[1741815964683,0.05694268,125.91,125.89,8.0011365]
[1741815965086,0.05694268,125.91,125.89,0.0567365]
[1741815965274,0.05694268,125.91,125.9,7.9442]
[1741815965680,143.69596631,125.96,125.9,30.64]
[1741815966187,143.69596631,125.96,125.9,42.41836179]
[1741815966581,143.69596631,125.96,125.91,4.0254]
[1741815966884,143.69596631,125.96,125.92,0.0521143]
[1741815967090,143.69596631,125.96,125.93,30.64]
[1741815967583,131.91760452,125.96,125.95,7.941]
[1741815970078,27.04076304,126.0,125.96,7.9403]
[1741815970486,27.04076304,126.0,125.97,0.06078608]
[1741815970886,34.97896304,126.0,125.97,0.06078608]
[1741815972291,27.04076304,126.0,125.97,0.06078608]
[1741815973093,7.9388,125.99,125.97,0.06078608]
[1741815975394,7.939,125.99,125.97,0.06078608]
[1741815975594,27.04076304,126.0,125.97,0.06078608]
[1741815975796,18.38556304,125.98,125.97,0.06078608]
[1741815975996,18.38556304,125.98,125.92,7.9425]
[1741815976998,18.38556304,125.98,125.91,34.6654]
[1741815976999,18.44027548,125.96,125.94,0.05405649]
[1741815977394,7.941,125.95,125.94,0.05405649]
[1741815982001,26.38097548,125.96,125.94,0.05405649]
[1741815982499,7.99541244,125.96,125.94,0.05405649]
[1741815982702,0.05471244,125.96,125.94,7.99525649]
[1741815982902,0.05471244,125.96,125.94,0.05405649]
[1741815983506,7.99561244,125.96,125.94,0.05405649]
[1741815984005,7.941,125.95,125.94,0.05405649]
[1741815987104,7.99541244,125.96,125.94,0.05405649]
[1741815988097,49.06027548,125.96,125.84,256.66556304]
[1741815988297,18.38556304,125.92,125.85,39.1358]
[1741815988502,18.38556304,125.92,125.85,8.5158]
[1741815988697,7.9449,125.89,125.85,47.0828]
[1741815989107,7.9459,125.88,125.83,42.6196]
[1741815989413,0.05762341,125.88,125.86,0.06089622]
[1741815989809,7.9463,125.87,125.86,0.06089622]
[1741815990103,0.05762341,125.88,125.86,0.06089622]
[1741815991007,8.00322341,125.88,125.86,0.06089622]
[1741815991204,0.05762341,125.88,125.86,0.06089622]
[1741815991806,0.05762341,125.88,125.86,30.68089622]
[1741815992316,150.28494009,125.97,125.86,57.00645926]
[1741815992613,150.28494009,125.97,125.87,4.0805]
[1741815993006,150.28494009,125.97,125.88,4.3827]
[1741815993202,7.9412,125.95,125.9,7.9436]
[1741815993410,0.05721916,125.94,125.91,0.05258793]
[1741815993613,0.05721916,125.94,125.92,30.62]
[1741815994009,0.05721916,125.94,125.93,7.9423]
[1741815994415,43.84599971,125.99,125.92,49.00556304]
[1741815994716,43.84599971,125.99,125.92,53.03766304]
[1741815995108,43.84599971,125.99,125.95,7.9408]
[1741815995313,43.84599971,125.99,125.96,30.62]
[1741815995513,43.84599971,125.99,125.96,38.5602]
[1741815995910,11.08306319,125.99,125.96,38.5602]
[1741815996120,7.938,126.0,125.96,38.5602]
[1741815996518,4.1164,126.01,125.97,0.05507327]
[1741815996817,18.38556304,126.0,125.97,0.05507327]
[1741815997213,7.9391,125.98,125.97,0.05507327]
[1741816003220,26.32466304,125.98,125.97,0.05507327]
[1741816003419,56.94466304,125.98,125.97,7.327e-05]
[1741816005127,61.15956304,125.98,125.97,7.327e-05]
[1741816008223,61.16046304,125.98,125.88,4.3827]
[1741816008431,7.9427,125.93,125.89,30.62]
[1741816009522,0.05364692,125.92,125.9,0.05133486]
[1741816009721,0.05364692,125.92,125.9,7.99523486]
[1741816010833,0.05364692,125.92,125.9,0.05133486]
[1741816011129,7.9436,125.91,125.9,0.05133486]
[1741816012934,0.05364692,125.92,125.9,0.05133486]
[1741816014727,0.05364692,125.92,125.9,7.99543486]
[1741816015328,0.05364692,125.92,125.9,0.05133486]
[1741816015533,0.05364692,125.92,125.91,7.9436]
[1741816015835,0.05364692,125.92,125.9,30.67133486]
[1741816016029,0.05364692,125.92,125.9,38.61513486]
[1741816017433,0.05364692,125.92,125.9,30.67133486]
[1741816017637,0.05364692,125.92,125.91,7.9436]
[1741816019230,0.05364692,125.92,125.9,30.67133486]
[1741816019231,0.05364692,125.92,125.9,38.61503486]
[1741816020538,0.05364692,125.92,125.91,7.9436]
[1741816022138,0.05364692,125.92,125.9,38.61523486]
[1741816022339,0.05364692,125.92,125.9,0.05133486]
[1741816022727,7.9436,125.91,125.83,202.7924]
[1741816022930,38.8591,125.91,125.79,310.59919826]
[1741816023238,7.948,125.84,125.79,349.17009826]
[1741816023542,7.948,125.84,125.79,159.17009826]
[1741816024040,0.05822525,125.83,125.81,0.05437981]
[1741816024930,8.00692525,125.83,125.81,0.05437981]
[1741816025240,0.05822525,125.83,125.81,0.05437981]
[1741816025737,7.9492,125.82,125.81,0.05437981]
[1741816028442,0.05822525,125.83,125.81,0.05437981]
[1741816028834,0.05822525,125.83,125.76,18.38556304]
[1741816029041,0.05822525,125.83,125.76,49.00556304]
[1741816029638,7.9502,125.81,125.77,7.9522]
[1741816030039,0.05133626,125.8,125.78,0.05979437]
[1741816030642,8.00193626,125.8,125.78,0.05979437]
[1741816031041,0.05133626,125.8,125.78,0.05979437]
[1741816032044,8.00203626,125.8,125.78,0.05979437]
[1741816035240,0.05133626,125.8,125.78,0.05979437]
[1741816038545,0.05133626,125.8,125.78,8.01109437]
[1741816041342,0.05133626,125.8,125.78,0.05979437]
[1741816045050,8.00193626,125.8,125.78,0.05979437]
[1741816046553,0.05133626,125.8,125.78,0.05979437]
[1741816047059,8.00183626,125.8,125.78,0.05979437]
[1741816048855,0.05133626,125.8,125.78,8.01139437]
[1741816050450,8.00213626,125.8,125.78,0.05979437]
[1741816052756,7.9511,125.79,125.78,0.05979437]
[1741816054260,7.9519,125.78,125.74,11.79504926]
[1741816054560,7.9519,125.78,125.74,42.41504926]
[1741816055458,0.05028738,125.77,125.75,0.05427505]
[1741816055853,0.05028738,125.77,125.76,7.953]
[1741816062557,0.05028738,125.77,125.75,8.00767505]
[1741816063262,0.05028738,125.77,125.75,0.05427505]
[1741816063561,0.05028738,125.77,125.76,7.953]
[1741816065665,0.05028738,125.77,125.75,0.05427505]
[1741816065964,0.05028738,125.77,125.75,8.00757505]
[1741816067759,0.05028738,125.77,125.76,7.953]
[1741816069057,0.05028738,125.77,125.75,0.05427505]
[1741816069764,0.05028738,125.77,125.76,7.953]
[1741816070162,0.05028738,125.77,125.75,0.05427505]
[1741816070362,0.05028738,125.77,125.75,8.00757505]
[1741816072657,8.00268738,125.77,125.75,8.00757505]
[1741816073163,8.00268738,125.77,125.75,19.80262431]
[1741816074365,7.953,125.76,125.75,0.05427505]
[1741816074965,7.9552,125.73,125.71,14.75984926]
[1741816075963,8.00977817,125.73,125.71,14.81984434]
[1741816077163,8.00977817,125.73,125.71,3.02479508]
[1741816077968,8.00977817,125.73,125.71,0.05999508]
[1741816080971,0.05457817,125.73,125.71,0.05999508]
[1741816081167,7.9556,125.72,125.71,0.05999508]
[1741816086876,7.9575,125.69,125.65,11.79504926]
[1741816087479,7.9578,125.69,125.65,11.79504926]
[1741816088067,0.05453379,125.68,125.66,8.01299175]
[1741816089180,8.01323379,125.68,125.66,0.05369175]
[1741816089370,0.05453379,125.68,125.66,0.05369175]
[1741816089573,11.84958305,125.68,125.66,0.05369175]
[1741816090274,0.05453379,125.68,125.63,7.961]
[1741816090573,11.84958305,125.68,125.63,7.961]
[1741816090778,7.959,125.67,125.63,7.961]
[1741816091277,7.959,125.67,125.64,7.9605]
[1741816091578,7.959,125.67,125.64,8.01376613]
[1741816091878,7.9595,125.66,125.64,8.01376613]
[1741816092476,11.84958305,125.68,125.64,0.05326613]
[1741816092781,7.96,125.65,125.64,0.05326613]
[1741816094082,7.9596,125.66,125.64,0.05326613]
[1741816094576,7.9598,125.66,125.64,0.05326613]
[1741816101184,19.75484926,125.66,125.64,0.05326613]
[1741816101486,7.9615,125.63,125.59,7.9635]
[1741816101689,19.75654926,125.63,125.59,7.9635]
[1741816102181,7.9604,125.65,125.62,7.9618]
[1741816102386,11.79504926,125.66,125.62,7.9618]
[1741816102587,0.05555275,125.65,125.62,8.02156529]
[1741816102782,0.05555275,125.65,125.63,7.9613]
[1741816102975,0.05555275,125.65,125.62,0.05976529]
[1741816103690,0.05555275,125.65,125.63,7.9611]
[1741816106989,11.79504926,125.64,125.63,7.9611]
[1741816107189,11.79504926,125.64,125.62,0.05976529]
[1741816107390,11.79504926,125.64,125.62,8.02136529]
[1741816107581,11.79504926,125.64,125.62,0.05976529]
[1741816107787,19.75604926,125.64,125.62,0.05976529]
[1741816107986,11.79504926,125.64,125.62,0.05976529]
[1741816108585,7.9613,125.63,125.62,0.05976529]
[1741816117400,7.9637,125.6,125.56,33.1684]
[1741816117604,19.75874926,125.6,125.56,33.1684]
[1741816117796,19.75874926,125.6,125.57,7.9648]
[1741816117995,7.9639,125.59,125.57,7.9648]
[1741816118394,11.79504926,125.58,125.55,10.608]
[1741816118601,11.79504926,125.58,125.57,0.05175271]
[1741816118896,19.75974926,125.58,125.57,0.05175271]
[1741816123200,19.75504926,125.58,125.47,11.02481692]
[1741816123405,11.79504926,125.51,125.47,11.02481692]
[1741816123904,7.9706,125.49,125.47,11.02481692]
[1741816124103,7.9706,125.49,125.46,11.02481692]
[1741816124298,7.9708,125.48,125.46,11.07705512]
[1741816124503,11.8539458,125.49,125.46,11.07705512]
[1741816124899,19.8243458,125.49,125.46,11.07705512]
[1741816125802,11.8539458,125.49,125.46,11.07705512]
[1741816127300,19.8241458,125.49,125.46,11.07705512]
[1741816127806,19.8241458,125.49,125.46,0.0522382]
[1741816128306,11.8539458,125.49,125.46,0.0522382]
[1741816130704,0.05889654,125.49,125.47,30.64]
[1741816131209,11.79504926,125.53,125.51,7.9688]
[1741816131700,11.79504926,125.53,125.52,7.9682]
[1741816131897,11.79504926,125.55,125.52,7.9682]
[1741816132297,11.85134582,125.55,125.52,8.01903241]
[1741816133909,11.85134582,125.55,125.52,0.05083241]
[1741816133910,11.79504926,125.53,125.52,0.05083241]
[1741816134308,19.76264926,125.53,125.52,0.05083241]
[1741816138302,19.76264926,125.53,125.52,3.241e-05]